fUSD/lending_fUSD_20250103
["ID","MTS","AMOUNT","RATE_DAILY","PERIOD"]
[347496987,1735877440444,-500.0,9.753e-05,2]
[347496988,1735877440453,-500.0,9.753e-05,2]
[347496989,1735877440462,-500.0,9.753e-05,2]
[347496990,1735877440473,-500.0,9.753e-05,2]
[347496991,1735877440482,-976.53,9.753e-05,2]
[347496992,1735877440492,-500.0,9.753e-05,2]
[347496993,1735877440501,-866.7,9.753e-05,2]
[347496994,1735877440510,-500.0,9.753e-05,2]
[347496995,1735877440520,-3610.15,9.753e-05,2]
[347496996,1735877440531,-500.0,9.753e-05,2]
[347496997,1735877440540,-1542.7,9.753e-05,2]
[347496998,1735877440550,-1842.95,9.753e-05,2]
[347496999,1735877440561,-500.0,9.753e-05,2]
[347497000,1735877440570,-349.31317039,9.753e-05,2]
[347497001,1735877440579,-500.0,9.753e-05,2]
[347497002,1735877440589,-500.0,9.753e-05,2]
[347497003,1735877440599,-1083.95,9.753e-05,2]
[347497004,1735877440610,-500.0,9.753e-05,2]
[347497005,1735877440619,-706.13,9.753e-05,2]
[347497006,1735877440629,-856.12,9.753e-05,2]
[347497007,1735877440638,-500.0,9.753e-05,2]
[347497008,1735877440647,-500.0,9.753e-05,2]
[347497009,1735877440657,-1786.45,9.753e-05,2]
[347497010,1735877440666,-2299.29,9.753e-05,2]
[347497012,1735877440675,-500.0,9.753e-05,2]
[347497014,1735877440684,-495.8899782,9.753e-05,2]
[347497016,1735877440693,-687.52,9.753e-05,2]
[347497018,1735877440703,-1935.89,9.753e-05,2]
[347497020,1735877440712,-500.0,9.753e-05,2]
[347497022,1735877440721,-500.0,9.753e-05,2]
[347497024,1735877440730,-698.46,9.753e-05,2]
[347497026,1735877440739,-500.0,9.753e-05,2]
[347497028,1735877440748,-1740.13,9.753e-05,2]
[347497030,1735877440757,-500.0,9.753e-05,2]
[347497032,1735877440766,-500.0,9.753e-05,2]
[347497034,1735877440776,-500.0,9.753e-05,2]
[347497069,1735877441099,-500.0,9.753e-05,2]
[347497071,1735877441109,-500.0,9.753e-05,2]
[347497073,1735877441118,-523.52,9.753e-05,2]
[347497075,1735877441127,-2702.14,9.753e-05,2]
[347497077,1735877441136,-500.0,9.753e-05,2]
[347497079,1735877441146,-1551.44,9.753e-05,2]
[347497081,1735877441155,-500.0,9.753e-05,2]
[347497083,1735877441165,-500.0,9.753e-05,2]
[347497085,1735877441174,-500.0,9.753e-05,2]
[347497087,1735877441184,-1295.83,9.753e-05,2]
[347497089,1735877441193,-500.0,9.753e-05,2]
[347497091,1735877441202,-500.0,9.753e-05,2]
[347497093,1735877441211,-500.0,9.753e-05,2]
[347497095,1735877441220,-1344.95,9.753e-05,2]
[347497097,1735877441231,-500.0,9.753e-05,2]
[347497099,1735877441240,-603.02772993,9.753e-05,2]
[347497101,1735877441251,-500.0,9.753e-05,2]
[347497103,1735877441260,-3929.03,9.753e-05,2]
[347497105,1735877441269,-500.0,9.753e-05,2]
[347497107,1735877441279,-2561.39,9.753e-05,2]
[347497109,1735877441288,-500.0,9.753e-05,2]
[347497111,1735877441299,-500.0,9.753e-05,2]
[347497113,1735877441308,-1997.77,9.753e-05,2]
[347497115,1735877441317,-500.0,9.753e-05,2]
[347497117,1735877441327,-500.0,9.753e-05,2]
[347497119,1735877441337,-500.0,9.753e-05,2]
[347497121,1735877441346,-500.0,9.753e-05,2]
[347497123,1735877441355,-639.23,9.753e-05,2]
[347497125,1735877441364,-2736.24,9.753e-05,2]
[347497127,1735877441373,-500.0,9.753e-05,2]
[347497129,1735877441382,-500.0,9.753e-05,2]
[347497131,1735877441391,-500.0,9.753e-05,2]
[347497132,1735877441401,-609.91507491,9.753e-05,2]
[347497134,1735877441410,-1135.41,9.753e-05,2]
[347497136,1735877441420,-500.0,9.753e-05,2]
[347497138,1735877441429,-1031.58,9.753e-05,2]
[347497140,1735877441438,-500.0,9.753e-05,2]
[347497143,1735877441448,-2991.11,9.753e-05,2]
[347497144,1735877441458,-500.0,9.753e-05,2]
[347497146,1735877441467,-500.0,9.753e-05,2]
[347497149,1735877441476,-1102.96,9.753e-05,2]
[347497150,1735877441487,-500.0,9.753e-05,2]
[347497153,1735877441497,-500.0,9.753e-05,2]
[347497155,1735877441506,-579.23,9.753e-05,2]
[347497157,1735877441515,-500.0,9.753e-05,2]
[347497159,1735877441525,-500.0,9.753e-05,2]
[347497161,1735877441535,-500.0,9.753e-05,2]
[347497163,1735877441544,-9240.23,9.753e-05,2]
[347497165,1735877441553,-500.0,9.753e-05,2]
[347497167,1735877441562,-1743.25,9.753e-05,2]
[347497169,1735877441571,-500.0,9.753e-05,2]
[347497171,1735877441579,-656.18,9.753e-05,2]
[347497173,1735877441588,-500.0,9.753e-05,2]
[347497174,1735877441597,-1180.25,9.753e-05,2]
[347497176,1735877441606,-500.0,9.753e-05,2]
[347497178,1735877441615,-902.04,9.753e-05,2]
[347497180,1735877441623,-500.0,9.753e-05,2]
[347497182,1735877441632,-4704.99,9.753e-05,2]
[347497184,1735877441641,-1060.62,9.753e-05,2]
[347497186,1735877441650,-544.07,9.753e-05,2]
[347497188,1735877441659,-500.0,9.753e-05,2]
[347497190,1735877441668,-500.0,9.753e-05,2]
[347497192,1735877441677,-500.0,9.753e-05,2]
[347497194,1735877441687,-500.0,9.753e-05,2]
[347497196,1735877441696,-2049.03,9.753e-05,2]
[347497198,1735877441705,-708.71,9.753e-05,2]
[347497200,1735877441714,-500.0,9.753e-05,2]
[347497202,1735877441723,-1299.68,9.753e-05,2]
[347497204,1735877441734,-500.0,9.753e-05,2]
[347497206,1735877441743,-29001.27,9.753e-05,2]
[347497208,1735877441751,-2049.51,9.753e-05,2]
[347497210,1735877441760,-500.0,9.753e-05,2]
[347497212,1735877441769,-500.0,9.753e-05,2]
[347497214,1735877441778,-500.0,9.753e-05,2]
[347497216,1735877441787,-700.15,9.753e-05,2]
[347497218,1735877441796,-500.0,9.753e-05,2]
[347497220,1735877441805,-500.0,9.753e-05,2]
[347497222,1735877441813,-2561.82,9.753e-05,2]
[347497224,1735877441822,-590.79,9.753e-05,2]
[347497226,1735877441831,-1119.95,9.753e-05,2]
[347497228,1735877441840,-500.0,9.753e-05,2]
[347497230,1735877441849,-1472.28,9.753e-05,2]
[347497232,1735877441858,-873.53,9.753e-05,2]
[347497234,1735877441867,-684.01,9.753e-05,2]
[347497236,1735877441876,-2126.1,9.753e-05,2]
[347497237,1735877441884,-2155.95,9.753e-05,2]
[347497238,1735877441893,-500.0,9.753e-05,2]
[347497239,1735877441902,-500.0,9.753e-05,2]
[347497240,1735877441910,-500.0,9.753e-05,2]
[347497241,1735877441919,-500.61409708,9.753e-05,2]
[347497242,1735877441928,-500.0,9.753e-05,2]
[347497243,1735877441937,-500.0,9.753e-05,2]
[347497244,1735877441946,-500.0,9.753e-05,2]
[347497245,1735877441955,-1053.55,9.753e-05,2]
[347497246,1735877441963,-500.0,9.753e-05,2]
[347497247,1735877441972,-500.0,9.753e-05,2]
[347497248,1735877441984,-870.27,9.753e-05,2]
[347497249,1735877441997,-500.0,9.753e-05,2]
[347497251,1735877442009,-3599.85,9.753e-05,2]
[347497253,1735877442030,-500.0,9.753e-05,2]
[347497255,1735877442046,-500.0,9.753e-05,2]
[347497257,1735877442055,-3636.42,9.753e-05,2]
[347497259,1735877442064,-500.0,9.753e-05,2]
[347497261,1735877442074,-500.0,9.753e-05,2]
[347497263,1735877442083,-500.0,9.753e-05,2]
[347497265,1735877442093,-912.61,9.753e-05,2]
[347497267,1735877442101,-500.0,9.753e-05,2]
[347497269,1735877442110,-500.0,9.753e-05,2]
[347497271,1735877442119,-2117.66,9.753e-05,2]
[347497273,1735877442128,-500.0,9.753e-05,2]
[347497275,1735877442137,-500.0,9.753e-05,2]
[347497277,1735877442146,-1049.83,9.753e-05,2]
[347497279,1735877442156,-500.0,9.753e-05,2]
[347497281,1735877442165,-500.0,9.753e-05,2]
[347497283,1735877442174,-500.0,9.753e-05,2]
[347497285,1735877442183,-970.27,9.753e-05,2]
[347497287,1735877442192,-500.0,9.753e-05,2]
[347497289,1735877442201,-2145.75,9.753e-05,2]
[347497291,1735877442210,-500.0,9.753e-05,2]
[347497293,1735877442219,-2178.67,9.753e-05,2]
[347497295,1735877442230,-1368.77,9.753e-05,2]
[347497297,1735877442239,-1525.99034647,9.753e-05,2]
[347497299,1735877442254,-1126.65965353,9.753e-05,2]
[347497301,1735877442264,-1063.11,9.753e-05,2]
[347497303,1735877442273,-500.0,9.753e-05,2]
[347497305,1735877442282,-500.0,9.753e-05,2]
[347497307,1735877442291,-384.23034647,9.753e-05,2]
[347497313,1735877442335,-115.76965353,9.753e-05,2]
[347497315,1735877442344,-500.0,9.753e-05,2]
[347497317,1735877442354,-500.0,9.753e-05,2]
[347497319,1735877442363,-500.0,9.753e-05,2]
[347497321,1735877442372,-1923.04148403,9.753e-05,2]
[347497323,1735877442384,-451.15504761,9.753e-05,2]
[347497380,1735877442969,-5455.38191511,9.753e-05,2]
[347497404,1735877445181,-1351.21908684,9.753e-05,2]
[347497405,1735877445913,1000.0,8.721e-05,2]
[347497407,1735877446388,-607.33246641,9.753e-05,2]
[347497408,1735877446397,-533.72139192,9.753e-05,2]
[347497409,1735877446406,-500.0,9.753e-05,2]
[347497410,1735877446415,-500.0,9.753e-05,2]
[347497411,1735877446423,-500.0,9.753e-05,2]
[347497412,1735877446433,-500.0,9.753e-05,2]
[347497413,1735877446444,-500.0,9.753e-05,2]
[347497414,1735877446454,-500.0,9.753e-05,2]
[347497415,1735877446464,-311.15790541,9.753e-05,2]
[347497416,1735877446500,-188.84209459,9.753e-05,2]
[347497417,1735877446510,-500.0,9.753e-05,2]
[347497418,1735877446520,-3101.12,9.753e-05,2]
[347497419,1735877446530,-610.43355598,9.753e-05,2]
[347497420,1735877446704,-470.46644402,9.753e-05,2]
[347497421,1735877446714,-29.53355598,9.753e-05,2]
[347497590,1735877657989,250.0,8.765e-05,2]
[347497591,1735877705167,150.0,8.837e-05,2]
[347497592,1735877747701,150.0,8.739e-05,2]
[347497593,1735877747800,150.0,8.412e-05,2]
[347497594,1735877747833,150.0,8.903e-05,2]
[347497595,1735877786384,1500.0,7.752e-05,2]
[347497596,1735877808259,150.0,8.511e-05,2]
[347497597,1735877808437,150.0,8.506e-05,2]
[347497598,1735877808471,150.0,8.964e-05,2]
[347497599,1735877845880,419.5,8.722e-05,2]
[347497601,1735877906386,1500.0,8.612e-05,2]
[347497602,1735877906426,1500.0,6.361e-05,2]
[347497603,1735877906484,200.97570884,6.531e-05,2]
[347497604,1735877914351,1299.02429116,7.679e-05,2]
[347497605,1735877927780,150.0,8.775e-05,2]
[347497606,1735877927891,150.0,8.017e-05,2]
[347497607,1735877927959,150.0,8.16e-05,2]
[347497608,1735877928012,150.0,8.244e-05,2]
[347497609,1735877928069,150.0,8.752e-05,2]
[347497610,1735877928270,150.0,8.204e-05,2]
[347497611,1735877966397,1500.0,8.481e-05,2]
[347497612,1735878164811,1752.39,8.219e-05,2]
[347497616,1735878347941,257.94,8.721e-05,2]
[347497617,1735878366400,1000.0,8.649e-05,2]
[347497632,1735878631640,-1057.0,9.104e-05,2]
[347497633,1735878631650,-1057.0,9.104e-05,2]
[347497634,1735878631661,-416.63602,9.325e-05,2]
[347497635,1735878631671,-1057.0,9.326e-05,2]
[347497636,1735878631682,-500.8389256,9.327e-05,2]
[347497637,1735878631691,-159.26,9.34e-05,2]
[347497638,1735878631700,-300.0,9.344e-05,2]
[347497639,1735878631709,-150.99,9.345e-05,2]
[347497640,1735878631718,-5621.68967444,9.345e-05,2]
[347497641,1735878631739,-917.51497631,9.345e-05,2]
[347497642,1735878631750,-2005.47083319,9.345e-05,2]
[347497643,1735878631866,-276.9999995,9.345e-05,2]
[347497644,1735878631922,-1178.31451656,9.345e-05,2]
[347497645,1735878631931,-999.99,9.345e-05,2]
[347497646,1735878631940,-361.09760835,9.4e-05,2]
[347497657,1735878637436,-1138.90239165,9.4e-05,2]
[347497658,1735878637448,-707.79783611,9.477e-05,2]
[347497659,1735878637459,-218.553,9.53e-05,2]
[347497660,1735878637469,-151.81,9.6e-05,2]
[347497661,1735878637478,-200.0,9.6e-05,3]
[347497662,1735878637488,-505.41,9.636e-05,2]
[347497663,1735878637497,-221.36919571,9.651e-05,2]
[347497664,1735878637521,-2878.30910429,9.651e-05,2]
[347497665,1735878637531,-501.42,9.651e-05,2]
[347497666,1735878637540,-490.66,9.651e-05,2]
[347497667,1735878637550,-913.49110665,9.668e-05,2]
[347497668,1735878637560,-507.7878666,9.67e-05,2]
[347497669,1735878637572,-19779.7221334,9.67e-05,2]
[347497670,1735878637581,-3645.56,9.67e-05,2]
[347497671,1735878637591,-498.52,9.671e-05,2]
[347497672,1735878637600,-491.05,9.671e-05,2]
[347497673,1735878637609,-150.0,9.69e-05,2]
[347497674,1735878637618,-500.0,9.7e-05,3]
[347497675,1735878637628,-1000.0,9.73e-05,2]
[347497676,1735878637641,-1500.0,9.75e-05,2]
[347497677,1735878637651,-5053.1,9.75e-05,2]
[347497678,1735878637660,-3499.59,9.75e-05,2]
[347497679,1735878637669,-4320.73191451,9.75e-05,2]
[347497680,1735878637682,-2415.27808549,9.75e-05,2]
[347497681,1735878637691,-720.22,9.75e-05,2]
[347497682,1735878637700,-500.0,9.75e-05,2]
[347497683,1735878637709,-2949.99,9.75e-05,2]
[347497684,1735878637719,-1580.36,9.75e-05,2]
[347497685,1735878637730,-3544.68740974,9.75e-05,2]
[347497686,1735878637765,-1161.4798076,9.75e-05,2]
[347497687,1735878637778,-974.80061012,9.75e-05,2]
[347497689,1735878637791,-2938.28217254,9.75e-05,2]
[347497691,1735878637800,-4016.03,9.75e-05,2]
[347497693,1735878637809,-13778.1,9.75e-05,2]
[347497695,1735878637819,-7785.53,9.75e-05,2]
[347497697,1735878637828,-7273.17,9.75e-05,2]
[347497699,1735878637837,-5894.26,9.75e-05,2]
[347497701,1735878637845,-3169.44,9.75e-05,2]
[347497703,1735878637854,-12981.68,9.75e-05,2]
[347497704,1735878637864,-9560.35,9.75e-05,2]
[347497706,1735878637873,-1697.22,9.75e-05,2]
[347497708,1735878637882,-500.0,9.75e-05,2]
[347497711,1735878637892,-500.0,9.75e-05,2]
[347497712,1735878637900,-4605.1,9.75e-05,2]
[347497714,1735878637910,-5425.92,9.75e-05,2]
[347497716,1735878637919,-4661.46,9.75e-05,2]
[347497718,1735878637928,-500.0,9.75e-05,2]
[347497720,1735878637938,-500.0,9.75e-05,2]
[347497722,1735878637947,-868.75,9.75e-05,2]
[347497724,1735878637956,-615.94,9.75e-05,2]
[347497726,1735878637966,-826.53,9.75e-05,2]
[347497728,1735878637975,-779.15,9.75e-05,2]
[347497730,1735878637984,-500.0,9.751e-05,2]
[347497732,1735878637993,-500.0,9.751e-05,2]
[347497734,1735878638002,-1817.3,9.751e-05,2]
[347497736,1735878638011,-500.0,9.751e-05,2]
[347497738,1735878638019,-3829.31,9.751e-05,2]
[347497740,1735878638028,-500.0,9.751e-05,2]
[347497742,1735878638038,-500.0,9.751e-05,2]
[347497744,1735878638048,-500.0,9.751e-05,2]
[347497746,1735878638057,-3399.73,9.751e-05,2]
[347497748,1735878638066,-500.0,9.751e-05,2]
[347497750,1735878638076,-500.0,9.751e-05,2]
[347497752,1735878638085,-802.74,9.751e-05,2]
[347497754,1735878638094,-500.0,9.751e-05,2]
[347497756,1735878638104,-500.0,9.751e-05,2]
[347497758,1735878638113,-1037.47,9.751e-05,2]
[347497760,1735878638122,-500.0,9.751e-05,2]
[347497762,1735878638131,-1404.38,9.751e-05,2]
[347497764,1735878638141,-500.0,9.751e-05,2]
[347497766,1735878638151,-500.0,9.751e-05,2]
[347497768,1735878638159,-500.0,9.751e-05,2]
[347497770,1735878638169,-587.97,9.751e-05,2]
[347497772,1735878638178,-500.0,9.751e-05,2]
[347497773,1735878638188,-2723.43,9.751e-05,2]
[347497775,1735878638197,-500.0,9.751e-05,2]
[347497777,1735878638206,-500.0,9.751e-05,2]
[347497779,1735878638216,-500.0,9.751e-05,2]
[347497781,1735878638227,-500.0,9.751e-05,2]
[347497783,1735878638237,-853.72,9.751e-05,2]
[347497785,1735878638247,-500.0,9.751e-05,2]
[347497788,1735878638256,-597.95,9.751e-05,2]
[347497790,1735878638266,-1654.38,9.751e-05,2]
[347497791,1735878638275,-500.0,9.751e-05,2]
[347497794,1735878638285,-500.0,9.751e-05,2]
[347497795,1735878638294,-500.0,9.751e-05,2]
[347497797,1735878638304,-500.0,9.751e-05,2]
[347497799,1735878638313,-3150.43,9.751e-05,2]
[347497801,1735878638322,-500.0,9.751e-05,2]
[347497803,1735878638331,-500.0,9.751e-05,2]
[347497805,1735878638340,-500.0,9.751e-05,2]
[347497807,1735878638350,-2263.17,9.751e-05,2]
[347497809,1735878638359,-500.0,9.751e-05,2]
[347497811,1735878638368,-3133.53,9.751e-05,2]
[347497813,1735878638377,-500.0,9.751e-05,2]
[347497815,1735878638386,-2877.25,9.751e-05,2]
[347497816,1735878638395,-500.0,9.751e-05,2]
[347497818,1735878638405,-2106.91,9.751e-05,2]
[347497820,1735878638414,-500.0,9.751e-05,2]
[347497822,1735878638423,-500.0,9.751e-05,2]
[347497824,1735878638432,-500.0,9.751e-05,2]
[347497825,1735878638442,-1743.11,9.751e-05,2]
[347497826,1735878638451,-500.0,9.751e-05,2]
[347497827,1735878638460,-1020.86,9.751e-05,2]
[347497828,1735878638469,-500.0,9.751e-05,2]
[347497829,1735878638479,-500.0,9.751e-05,2]
[347497830,1735878638488,-500.0,9.751e-05,2]
[347497831,1735878638497,-1699.06,9.751e-05,2]
[347497832,1735878638507,-500.0,9.751e-05,2]
[347497833,1735878638517,-500.0,9.751e-05,2]
[347497834,1735878638526,-500.0,9.751e-05,2]
[347497835,1735878638537,-500.0,9.751e-05,2]
[347497836,1735878638546,-500.0,9.751e-05,2]
[347497837,1735878638556,-500.0,9.751e-05,2]
[347497838,1735878638567,-500.0,9.751e-05,2]
[347497839,1735878638576,-579.34081728,9.751e-05,2]
[347497840,1735878638585,-500.0,9.751e-05,2]
[347497841,1735878638595,-2671.43,9.751e-05,2]
[347497842,1735878638604,-500.0,9.751e-05,2]
[347497843,1735878638613,-500.0,9.751e-05,2]
[347497844,1735878638623,-540.53,9.751e-05,2]
[347497845,1735878638638,-500.0,9.751e-05,2]
[347497846,1735878638648,-1186.94,9.751e-05,2]
[347497847,1735878638658,-500.0,9.751e-05,2]
[347497848,1735878638668,-500.0,9.751e-05,2]
[347497849,1735878638678,-500.0,9.751e-05,2]
[347497850,1735878638688,-500.0,9.751e-05,2]
[347497851,1735878638697,-500.0,9.751e-05,2]
[347497852,1735878638706,-2866.01,9.751e-05,2]
[347497853,1735878638715,-500.0,9.751e-05,2]
[347497854,1735878638725,-500.0,9.751e-05,2]
[347497855,1735878638734,-502.34,9.751e-05,2]
[347497856,1735878638744,-152.483359,9.751e-05,2]
[347497857,1735878638755,-500.53499597,9.751e-05,2]
[347497858,1735878638766,-500.0,9.751e-05,2]
[347497859,1735878638775,-500.0,9.751e-05,2]
[347497860,1735878638786,-500.0,9.751e-05,2]
[347497861,1735878638795,-1442.2,9.751e-05,2]
[347497862,1735878638805,-154.758914,9.751e-05,2]
[347497863,1735878638815,-2974.37,9.751e-05,2]
[347497864,1735878638823,-152.944311,9.751e-05,2]
[347497865,1735878638832,-500.0,9.751e-05,2]
[347497866,1735878638842,-581.03,9.751e-05,2]
[347497867,1735878638851,-500.0,9.751e-05,2]
[347497868,1735878638860,-500.0,9.751e-05,2]
[347497869,1735878638869,-500.0,9.751e-05,2]
[347497870,1735878638879,-500.0,9.751e-05,2]
[347497871,1735878638888,-500.0,9.751e-05,2]
[347497872,1735878638898,-1882.49,9.751e-05,2]
[347497873,1735878638907,-500.0,9.751e-05,2]
[347497874,1735878638916,-500.0,9.751e-05,2]
[347497875,1735878638926,-153.727825,9.751e-05,2]
[347497876,1735878638935,-500.0,9.751e-05,2]
[347497877,1735878638944,-916.32,9.751e-05,2]
[347497878,1735878638953,-3107.54,9.751e-05,2]
[347497879,1735878638962,-500.0,9.751e-05,2]
[347497880,1735878638971,-2341.17,9.751e-05,2]
[347497881,1735878638981,-500.0,9.751e-05,2]
[347497882,1735878638990,-500.0,9.751e-05,2]
[347497883,1735878638999,-500.0,9.751e-05,2]
[347497884,1735878639008,-676.51,9.751e-05,2]
[347497885,1735878639017,-500.0,9.751e-05,2]
[347497886,1735878639026,-1433.9,9.751e-05,2]
[347497887,1735878639036,-670.68,9.751e-05,2]
[347497888,1735878639045,-500.0,9.751e-05,2]
[347497889,1735878639055,-2309.39,9.751e-05,2]
[347497890,1735878639069,-500.0,9.751e-05,2]
[347497891,1735878639079,-1336.85,9.751e-05,2]
[347497892,1735878639088,-204.0762459,9.751e-05,2]
[347497893,1735878639097,-500.0,9.751e-05,2]
[347497894,1735878639107,-500.0,9.751e-05,2]
[347497895,1735878639116,-883.76,9.751e-05,2]
[347497896,1735878639125,-500.0,9.751e-05,2]
[347497897,1735878639134,-595.77,9.751e-05,2]
[347497898,1735878639144,-500.0,9.751e-05,2]
[347497899,1735878639153,-1105.6,9.751e-05,2]
[347497900,1735878639162,-500.0,9.751e-05,2]
[347497901,1735878639171,-1698.76,9.751e-05,2]
[347497902,1735878639182,-500.0,9.751e-05,2]
[347497903,1735878639191,-500.0,9.751e-05,2]
[347497904,1735878639200,-500.0,9.751e-05,2]
[347497905,1735878639210,-500.0,9.751e-05,2]
[347497906,1735878639219,-3636.03,9.751e-05,2]
[347497907,1735878639228,-500.0,9.751e-05,2]
[347497908,1735878639238,-500.0,9.751e-05,2]
[347497909,1735878639247,-500.0,9.751e-05,2]
[347497910,1735878639257,-1108.45,9.751e-05,2]
[347497911,1735878639266,-927.26,9.751e-05,2]
[347497912,1735878639275,-500.0,9.751e-05,2]
[347497913,1735878639285,-2241.89,9.751e-05,2]
[347497914,1735878639294,-1806.18,9.751e-05,2]
[347497915,1735878639304,-703.85,9.751e-05,2]
[347497916,1735878639313,-800.25,9.751e-05,2]
[347497917,1735878639323,-500.0,9.751e-05,2]
[347497918,1735878639332,-2589.55,9.751e-05,2]
[347497919,1735878639341,-1570.17,9.751e-05,2]
[347497920,1735878639351,-500.0,9.751e-05,2]
[347497921,1735878639360,-11160.57,9.751e-05,2]
[347497922,1735878639370,-500.0,9.751e-05,2]
[347497923,1735878639381,-1313.41,9.751e-05,2]
[347497924,1735878639391,-500.0,9.751e-05,2]
[347497925,1735878639400,-500.0,9.751e-05,2]
[347497926,1735878639409,-677.39,9.751e-05,2]
[347497927,1735878639418,-3941.18,9.751e-05,2]
[347497928,1735878639427,-2013.73,9.751e-05,2]
[347497929,1735878639436,-500.0,9.751e-05,2]
[347497930,1735878639446,-500.0,9.751e-05,2]
[347497931,1735878639455,-500.0,9.751e-05,2]
[347497932,1735878639464,-844.08,9.751e-05,2]
[347497933,1735878639474,-5277.78,9.751e-05,2]
[347497934,1735878639483,-500.0,9.751e-05,2]
[347497935,1735878639492,-201.12310732,9.751e-05,2]
[347497936,1735878639501,-500.0,9.751e-05,2]
[347497937,1735878639510,-500.0,9.751e-05,2]
[347497938,1735878639520,-1114.19,9.751e-05,2]
[347497939,1735878639529,-428.78873616,9.751e-05,2]
[347497940,1735878639539,-5942.79,9.751e-05,2]
[347497941,1735878639549,-500.0,9.751e-05,2]
[347497942,1735878639558,-1032.92,9.751e-05,2]
[347497943,1735878639567,-1759.95,9.751e-05,2]
[347497944,1735878639576,-573.47979132,9.751e-05,2]
[347497945,1735878639586,-500.0,9.751e-05,2]
[347497946,1735878639595,-500.0,9.751e-05,2]
[347497947,1735878639605,-500.0,9.751e-05,2]
[347497948,1735878639614,-558.67,9.751e-05,2]
[347497949,1735878639623,-500.0,9.751e-05,2]
[347497950,1735878639633,-500.0,9.751e-05,2]
[347497951,1735878639644,-4497.24,9.751e-05,2]
[347497952,1735878639653,-500.0,9.751e-05,2]
[347497953,1735878639662,-500.0,9.751e-05,2]
[347497954,1735878639672,-901.75,9.751e-05,2]
[347497955,1735878639682,-500.0,9.751e-05,2]
[347497956,1735878639691,-1280.68820349,9.751e-05,2]
[347497957,1735878639716,-419.275395,9.751e-05,2]
[347497958,1735878639728,-871.90640151,9.751e-05,2]
[347497959,1735878639737,-1695.24,9.751e-05,2]
[347497960,1735878639747,-2547.31,9.751e-05,2]
[347497961,1735878639757,-390.71024944,9.751e-05,2]
[347497962,1735878639766,-1963.66,9.751e-05,2]
[347497963,1735878639775,-500.0,9.751e-05,2]
[347497964,1735878639784,-500.0,9.751e-05,2]
[347497965,1735878639793,-1496.62,9.751e-05,2]
[347497966,1735878639803,-500.0,9.751e-05,2]
[347497967,1735878639812,-2068.9,9.751e-05,2]
[347497969,1735878639821,-576.00002095,9.751e-05,2]
[347497971,1735878639830,-500.0,9.751e-05,2]
[347497973,1735878639840,-500.0,9.751e-05,2]
[347497975,1735878639849,-3013.79,9.751e-05,2]
[347497977,1735878639858,-2588.02,9.751e-05,2]
[347497979,1735878639867,-1374.44,9.751e-05,2]
[347497981,1735878639876,-500.0,9.751e-05,2]
[347497983,1735878639886,-2150.04,9.751e-05,2]
[347497984,1735878639895,-3698.35,9.751e-05,2]
[347497987,1735878639905,-500.0,9.751e-05,2]
[347497988,1735878639915,-209.5066485,9.751e-05,2]
[347497990,1735878639924,-3636.98,9.751e-05,2]
[347497992,1735878639934,-500.0,9.751e-05,2]
[347497995,1735878639943,-4704.71,9.751e-05,2]
[347497996,1735878639953,-1959.32,9.751e-05,2]
[347497998,1735878639962,-1052.35,9.751e-05,2]
[347498000,1735878639972,-500.0,9.751e-05,2]
[347498002,1735878639981,-2158.92,9.751e-05,2]
[347498005,1735878639991,-1416.12,9.751e-05,2]
[347498006,1735878640000,-8437.64,9.751e-05,2]
[347498008,1735878640010,-500.0,9.751e-05,2]
[347498011,1735878640019,-500.0,9.751e-05,2]
[347498013,1735878640028,-2218.95,9.751e-05,2]
[347498015,1735878640038,-11380.96394147,9.751e-05,2]
[347498102,1735878641015,-312.65830546,9.751e-05,2]
[347498160,1735878641556,-17336.06775307,9.751e-05,2]
[347498162,1735878641565,-500.0,9.751e-05,2]
[347498164,1735878641574,-500.0,9.751e-05,2]
[347498166,1735878641583,-500.0,9.751e-05,2]
[347498168,1735878641593,-3714.6,9.751e-05,2]